bitfinex-derivatives/quotes_ETHF0:USTF0_20241207
["timestamp","ask_amount","ask_price","bid_price","bid_amount"]
[1733576343854,0.58679,4000.1,4000.0,0.17479]
[1733576344347,0.17478,4000.3,4000.2,0.17478]
[1733576344550,0.17478,4000.3,4000.2,1.07537477]
[1733576344751,0.4144,4000.5,4000.4,0.17478]
[1733576345549,0.4116,4000.8,4000.4,0.4005]
[1733576345753,7.57622654,4001.4,4000.8,0.17476]
[1733576345754,0.58775,4000.9,4000.8,0.17476]
[1733576345951,0.413,4000.9,4000.8,1.07535477]
[1733576346463,0.58775,4000.9,4000.8,0.90059477]
[1733576346953,0.17477,4000.5,4000.4,1.47586477]
[1733576347867,0.17477,4000.5,4000.4,1.30109477]
[1733576348455,0.17476,4000.8,4000.7,0.17476]
[1733576348657,0.17476,4000.8,4000.7,0.90059477]
[1733576349954,0.413,4000.9,4000.8,0.17476]
[1733576350163,0.8232,4001.3,4000.7,4.10839477]
[1733576350164,0.4116,4001.3,4000.7,4.10839477]
[1733576350362,0.17474,4001.3,4001.2,0.90059477]
[1733576350767,3.2078,4001.4,4001.2,1.27379477]
[1733576350961,3.2078,4001.4,4001.3,0.17474]
[1733576351264,3.38253,4001.4,4001.3,0.17474]
[1733576352060,0.17474,4001.3,4001.2,1.27379477]
[1733576352368,0.17474,4001.3,4001.2,1.44853477]
[1733576352662,0.17474,4001.3,4001.2,0.54794]
[1733576356661,2.19805039,4002.6,4001.2,0.3732]
[1733576356867,0.4125,4002.0,4001.5,1.9481135]
[1733576357160,0.4125,4002.0,4001.8,0.17472]
[1733576357161,0.58721,4002.0,4001.8,0.17472]
[1733576357366,0.58721,4002.0,4001.6,41.1836]
[1733576357562,0.58721,4002.0,4001.8,0.17471]
[1733576358077,0.58721,4002.0,4001.9,0.4129]
[1733576358371,0.58721,4002.0,4001.9,0.58761]
[1733576359170,0.58721,4002.0,4001.9,0.4129]
[1733576359578,0.58721,4002.0,4001.9,0.58761]
[1733576359767,0.58721,4002.0,4001.9,0.4129]
[1733576360168,0.58721,4002.0,4001.9,0.58761]
[1733576360566,0.58721,4002.0,4001.9,0.4129]
[1733576360771,0.58721,4002.0,4001.9,0.58761]
[1733576361277,0.58721,4002.0,4001.9,0.4129]
[1733576361671,0.58721,4002.0,4001.9,0.58761]
[1733576362575,0.4125,4002.0,4001.9,0.58761]
[1733576363175,0.58721,4002.0,4001.9,0.58761]
[1733576363774,0.4125,4002.0,4001.9,0.58761]
[1733576364074,0.58721,4002.0,4001.9,0.58761]
[1733576364779,0.4125,4002.0,4001.9,0.58761]
[1733576365277,0.58721,4002.0,4001.9,0.58761]
[1733576366078,0.4125,4002.0,4001.9,0.58761]
[1733576367380,0.58721,4002.0,4001.9,0.58761]
[1733576367775,0.4125,4002.0,4001.9,0.58761]
[1733576368680,0.3804,4002.2,4002.1,0.1747]
[1733576368887,0.5551,4002.2,4002.1,0.1747]
[1733576369975,0.3804,4002.2,4002.1,0.1747]
[1733576370175,0.5551,4002.2,4002.1,0.1747]
[1733576371275,0.3804,4002.2,4002.1,0.1747]
[1733576371482,0.5551,4002.2,4002.1,0.1747]
[1733576372580,0.5551,4002.2,4002.1,1.07340995]
[1733576373581,0.3804,4002.2,4002.1,1.07340995]
[1733576373777,0.5551,4002.2,4002.1,1.07340995]
[1733576375978,0.3879,4002.4,4002.1,0.89870995]
[1733576376178,0.56259,4002.4,4002.3,0.17469]
[1733576377682,3.2078,4002.7,4002.6,0.17468]
[1733576377985,3.2078,4002.7,4002.6,1.07338995]
[1733576378186,3.2078,4002.7,4002.6,41.87338995]
[1733576378386,3.2078,4002.7,4002.6,1.07338995]
[1733576380094,3.2078,4002.7,4002.6,1.16713792]
[1733576382487,0.55337,4002.9,4002.8,0.17467]
[1733576383593,0.17468,4002.8,4002.7,0.17467]
[1733576384089,0.3787,4002.9,4002.6,0.89870995]
[1733576384090,0.17468,4002.7,4002.6,0.89870995]
[1733576384488,0.17468,4002.7,4002.6,1.07338995]
[1733576384683,0.17468,4002.7,4002.6,0.89870995]
[1733576384890,0.17468,4002.7,4002.6,1.07338995]
[1733576389795,0.17468,4002.7,4002.6,0.89870995]
[1733576390200,3.1097272,4002.7,4002.6,0.89870995]
[1733576390397,2.9350472,4002.7,4002.4,0.4037]
[1733576390699,2.9350472,4002.6,4002.2,0.89870995]
[1733576390896,0.17469,4002.4,4002.3,0.99250133]
[1733576391298,0.58839,4002.4,4002.3,0.99250133]
[1733576392306,0.58839,4002.4,4002.3,1.16719133]
[1733576392505,0.58839,4002.4,4002.3,0.99250133]
[1733576393098,0.58839,4002.4,4002.3,0.99251179]
[1733576393700,0.85044,4002.4,4002.0,0.89870995]
[1733576393898,0.85044,4002.4,4002.1,0.09381574]
[1733576394196,0.1747,4002.1,4002.0,0.89870995]
[1733576394402,0.1747,4002.1,4002.0,0.99253533]
[1733576394595,0.1747,4002.1,4002.0,0.09382538]
[1733576395003,0.17471,4002.0,4001.9,0.89870995]
[1733576395206,0.56921,4002.0,4001.9,0.99253498]
[1733576397208,0.56921,4002.0,4001.9,0.99253728]
[1733576397702,0.56921,4002.0,4001.9,0.09382733]
[1733576397914,3.5042572,4002.0,4001.9,0.99253728]
[1733576398804,3.5042572,4002.0,4001.9,1.11717051]
[1733576399514,3.5042572,4002.0,4001.9,1.11716705]
[1733576399814,3.5042572,4002.0,4001.9,1.11716667]
[1733576400709,5.22478649,4002.0,4001.4,3.2078]
[1733576400907,0.17473,4001.5,4001.4,4.10650995]
[1733576401109,0.17473,4001.5,4001.4,4.28123995]
[1733576401411,3.93157654,4001.7,4001.4,4.28123995]
[1733576401606,3.93157654,4001.7,4001.4,4.10650995]
[1733576401814,2.93569594,4001.6,4001.5,0.69584099]
[1733576402009,2.93569594,4001.6,4001.5,1.59454241]
[1733576402308,2.93569594,4001.8,4001.7,0.17472]
[1733576402508,2.93569594,4001.8,4001.7,1.19803241]
[1733576402905,3.11041594,4001.8,4001.7,41.82331241]
[1733576403307,3.11041594,4001.8,4001.7,1.02331241]
[1733576403508,0.17472,4001.8,4001.7,0.89870995]
[1733576405111,2.9368946,4001.8,4001.7,0.89870995]
[1733576405414,3.1116146,4001.8,4001.7,0.89870995]
[1733576405610,0.17472,4001.8,4001.7,0.89870995]
[1733576405814,6.1446946,4002.3,4001.7,5.34961085]
[1733576406116,0.17471,4001.9,4001.8,3.92548565]
[1733576406519,0.17471,4001.9,4001.8,4.10020565]
[1733576407014,0.17471,4001.9,4001.8,3.92548565]
[1733576407612,0.17471,4001.9,4001.8,4.8241956]
[1733576408513,0.17471,4001.9,4001.8,4.9989156]
[1733576408818,0.00936227,4001.9,4001.8,0.89870995]
[1733576409006,0.00936227,4001.9,4001.8,4.8241956]
[1733576409007,0.18407227,4001.9,4001.8,4.8241956]
[1733576409211,0.18407227,4001.9,4001.8,4.9989156]
[1733576409820,0.18407227,4001.9,4001.8,1.07342995]
[1733576410022,0.00936227,4001.9,4001.8,4.99882914]
[1733576410316,0.00936227,4001.9,4001.8,6.42291567]
[1733576410612,0.00936227,4001.9,4001.8,13.49333372]
[1733576410817,0.00936227,4001.9,4001.8,14.54978885]
[1733576411516,0.17468,4002.8,4002.1,0.1747]
[1733576411720,0.17467,4002.8,4002.6,1.07338995]
[1733576411917,6.1446946,4002.9,4002.6,1.07338995]
[1733576412118,0.17467,4002.8,4002.6,1.07338995]
[1733576412317,0.17467,4002.8,4002.7,0.17468]
[1733576412517,6.1446946,4002.9,4002.6,0.89870995]
[1733576412713,0.17467,4002.8,4002.7,0.17467]
[1733576413117,0.17467,4002.8,4002.6,1.07338995]
[1733576413318,0.17467,4002.8,4002.7,0.4133]
[1733576414725,8.11810012,4002.9,4002.6,0.89870995]
[1733576414919,1.34738,4002.7,4002.6,0.89870995]
[1733576415422,0.17469,4002.3,4002.2,0.89870995]
[1733576415812,0.17469,4002.3,4002.2,0.99241184]
[1733576416422,4.09095097,4002.3,4002.2,0.99241184]
[1733576417019,0.17469,4002.3,4002.2,0.99241184]
[1733576418024,0.17469,4002.3,4002.2,1.16711184]
[1733576418224,0.17469,4002.4,4002.3,0.17469]
[1733576418421,0.17469,4002.4,4002.3,0.26839189]
[1733576418623,3.91626097,4002.6,4002.3,0.46910189]
[1733576418819,3.2078,4002.9,4002.5,1.07338995]
[1733576418820,3.91626097,4002.7,4002.5,1.07338995]
[1733576419020,4.09094097,4002.7,4002.6,0.26838189]
[1733576419721,4.09094097,4002.7,4002.6,0.26839636]
[1733576419930,4.09094097,4002.7,4002.6,0.09371636]
[1733576420118,0.17468,4002.7,4002.6,0.09371636]
[1733576420320,0.17468,4002.5,4002.4,1.30040995]
[1733576420525,4.09158703,4002.5,4002.4,0.49542056]
[1733576421021,0.17468,4002.5,4002.4,0.67011056]
[1733576421227,3.64449,4002.9,4002.4,0.49542056]
[1733576421228,2.93894228,4002.8,4002.4,0.49542056]
[1733576421527,0.17467,4002.8,4002.7,0.17467]
[1733576422429,0.17467,4002.8,4002.7,0.26837797]
[1733576423122,0.3934,4002.9,4002.7,0.09370797]
[1733576423330,0.17467,4002.8,4002.5,3.92483523]
[1733576423624,0.56807,4002.9,4002.8,0.17467]
[1733576423925,0.17466,4003.0,4002.9,0.17466]
[1733576425220,0.17466,4003.0,4002.8,0.7998]
[1733576425221,0.17467,4002.9,4002.8,0.97447]
[1733576425621,0.17467,4002.9,4002.8,0.7998]
[1733576426128,0.17467,4002.9,4002.8,0.97447]
[1733576428721,0.17466,4003.0,4002.9,0.17466]
[1733576430221,0.17466,4003.1,4003.0,0.17466]
[1733576432222,0.17467,4003.0,4002.9,0.17467]
[1733576434530,0.17466,4003.1,4003.0,0.17466]
[1733576436230,0.17467,4002.9,4002.8,0.7998]
[1733576436430,3.11098054,4002.9,4002.8,0.97447]
[1733576437340,0.7621,4003.2,4002.8,0.7998]
[1733576437341,2.93631054,4003.0,4002.8,0.7998]
[1733576437531,3.11097054,4003.0,4002.9,0.17467]
[1733576437729,2.93631054,4003.0,4002.9,0.17467]
[1733576439934,3.11097054,4003.0,4002.9,0.17467]
[1733576440629,3.11097054,4003.0,4002.9,1.07303025]
[1733576442035,2.93631054,4003.0,4002.9,1.19759803]
[1733576442234,3.11097054,4003.0,4002.9,1.29134275]
[1733576442433,2.93631054,4003.1,4002.9,1.11667275]
[1733576442636,3.11097054,4003.1,4003.0,0.3929725]
[1733576442932,2.93631054,4003.1,4003.0,0.3929725]
[1733576443244,0.93675,4003.2,4003.1,0.17466]
[1733576443430,0.93675,4003.2,4003.1,0.26840472]
[1733576445131,0.3738,4003.2,4003.1,0.26840472]
[1733576445332,0.3738,4003.2,4003.1,0.39296931]
[1733576445836,0.57444,4003.5,4003.4,0.17465]
[1733576446033,0.17463,4003.8,4003.7,0.17463]
[1733576446238,0.17463,4003.8,4003.7,0.39291266]
[1733576446437,0.17463,4003.8,4003.7,0.392904]
[1733576447935,0.17463,4003.8,4003.7,1.29126425]
[1733576448938,0.17463,4003.8,4003.7,1.29117778]
[1733576449140,0.17463,4003.8,4003.7,1.16667587]
[1733576449443,0.17463,4003.8,4003.7,1.29115656]
[1733576450036,0.17463,4003.8,4003.7,1.16667587]
[1733576450238,0.17463,4003.8,4003.7,0.99204587]
[1733576450431,0.17463,4003.8,4003.7,0.09368562]
[1733576450636,0.17463,4003.7,4003.6,0.89836025]
[1733576450837,0.17463,4003.7,4003.6,0.99202777]
[1733576451040,0.17463,4003.7,4003.6,1.16666777]
[1733576451544,0.17463,4003.7,4003.6,0.99202777]
[1733576451844,0.17463,4003.7,4003.6,1.16666777]
[1733576452036,0.17463,4003.7,4003.6,0.99202777]
[1733576452239,0.17463,4003.7,4003.6,1.16666777]
[1733576452838,0.17463,4003.7,4003.6,0.99202777]
[1733576453432,0.17463,4003.7,4003.6,1.16666777]
[1733576453938,0.17463,4003.7,4003.6,0.99202777]
[1733576454346,0.17463,4003.7,4003.6,0.89836025]
[1733576454543,0.17463,4003.7,4003.6,0.09367313]
[1733576454748,2.93631054,4003.8,4003.2,0.89836025]
[1733576454749,3.91690703,4003.8,4003.2,0.89836025]
[1733576455038,0.17465,4003.3,4003.2,0.89836025]
[1733576455248,0.17465,4003.3,4003.2,0.99205223]
[1733576455649,0.17465,4003.3,4003.2,0.89836025]
[1733576455841,0.17465,4003.3,4003.2,0.99204674]
[1733576456152,0.17465,4003.3,4003.2,0.89836025]
[1733576458849,4.09155703,4003.3,4003.2,0.89836025]
[1733576460449,3.11466844,4003.3,4003.2,1.07301025]
[1733576460746,1.181,4003.4,4003.2,0.99205675]
[1733576460747,2.94001844,4003.4,4003.2,0.99205675]
[1733576460953,3.11466844,4003.4,4003.3,0.96415]
[1733576461448,2.94001844,4003.5,4003.4,0.17465]
[1733576461654,0.17464,4003.5,4003.4,1.07301025]
[1733576461849,0.17464,4003.5,4003.4,1.48411025]
[1733576462242,4.09154703,4003.6,4003.5,0.17464]
[1733576462446,3.91690703,4003.6,4003.5,0.17464]
[1733576462647,0.58284,4003.7,4003.4,1.30946025]
[1733576462842,3.11418702,4003.6,4003.5,0.17464]
[1733576464154,0.17464,4003.6,4003.5,0.17464]
[1733576464353,0.17464,4003.6,4003.5,0.26832998]
[1733576464550,3.11475018,4003.6,4003.5,0.26832704]
[1733576464747,2.94011018,4003.6,4003.5,0.26832619]
[1733576464952,3.91690703,4003.8,4003.7,0.17463]
[1733576465148,0.17462,4003.9,4003.8,0.17463]
[1733576465353,0.17462,4003.9,4003.8,0.39280126]
[1733576466162,0.17462,4003.9,4003.8,0.26831619]
[1733576467155,0.17462,4003.9,4003.8,0.39280311]
[1733576467355,0.17462,4003.9,4003.8,0.26831619]
[1733576467651,0.17462,4003.9,4003.8,0.09368619]
[1733576468250,0.17462,4004.0,4003.8,0.09367201]
[1733576468452,0.3919,4004.1,4003.7,1.07299025]
[1733576468758,0.17463,4003.8,4003.7,0.89836025]
[1733576469058,0.17463,4003.8,4003.7,0.99203246]
[1733576469254,0.17463,4003.8,4003.7,0.09367221]
[1733576469464,2.94017303,4003.9,4003.4,0.89836025]
[1733576469756,0.17464,4003.5,4003.4,0.89836025]
[1733576471360,0.17464,4003.5,4003.4,0.99204858]
[1733576471555,0.17464,4003.5,4003.4,0.89836025]
[1733576471758,0.17464,4003.5,4003.4,0.99206075]
[1733576472354,0.17464,4003.5,4003.4,0.89836025]
[1733576473158,4.69640703,4003.6,4003.1,0.89836025]
[1733576473457,3.11430142,4003.2,4003.1,1.07302025]
[1733576473662,3.11430142,4003.2,4003.1,1.16673739]
[1733576474047,0.17465,4003.2,4003.1,1.16673739]
[1733576474253,2.93965142,4003.2,4003.1,0.99207739]
[1733576474448,3.11430142,4003.2,4003.1,1.16673739]
[1733576474654,3.11430142,4003.2,4003.1,1.56293739]
[1733576475151,3.11430142,4003.2,4003.1,1.38827739]
[1733576475955,2.93965142,4003.2,4003.1,1.56293739]
[1733576476461,2.93965142,4003.3,4003.1,1.51148856]
[1733576476658,2.93965142,4003.3,4003.2,0.26836714]
[1733576478356,2.93965142,4003.3,4003.2,0.26837819]
[1733576479254,2.93965142,4003.4,4003.2,0.21694306]
[1733576479460,2.93965142,4003.4,4003.3,0.39159306]
[1733576479962,2.93965142,4003.4,4003.3,0.26837819]
[1733576480162,0.57934,4003.6,4003.3,4.01856342]
[1733576480460,0.57934,4003.6,4003.5,1.07300025]
[1733576480762,0.57934,4003.6,4003.5,41.87300025]
[1733576481162,0.57934,4003.6,4003.5,1.07300025]
[1733576483464,0.57934,4003.6,4003.5,0.89836025]
[1733576483660,0.57934,4003.6,4003.5,1.07300025]
[1733576484259,0.57934,4003.6,4003.5,0.89836025]
[1733576484463,3.51899142,4003.6,4003.5,0.89836025]
[1733576486162,3.51899142,4003.6,4003.5,1.07300025]
[1733576486364,0.4047,4003.6,4003.5,1.07300025]
[1733576487361,0.4047,4003.6,4003.5,1.19621573]
[1733576487561,0.4047,4003.6,4003.5,5.12105096]
[1733576487759,0.4047,4003.6,4003.5,5.21478064]
[1733576488162,0.4047,4003.6,4003.5,1.28994541]
[1733576489161,0.57934,4003.6,4003.5,1.28994541]
[1733576489361,0.4047,4003.6,4003.5,1.28994541]
[1733576489664,0.4047,4003.6,4003.5,1.29000477]
[1733576489665,0.57934,4003.6,4003.5,1.29000477]
[1733576489861,0.57934,4003.6,4003.5,0.99211549]
[1733576490365,5.48964012,4003.6,4003.5,1.16675549]
[1733576490666,5.48964012,4003.6,4003.5,0.99211549]
[1733576490859,5.48964012,4003.6,4003.5,1.16675549]
[1733576491556,0.57934,4003.6,4003.5,1.29001141]
[1733576493068,0.57934,4003.6,4003.5,1.29001743]
[1733576494271,0.4047,4003.6,4003.5,1.29001743]
[1733576494569,0.57934,4003.6,4003.5,1.29001743]
[1733576494761,0.4047,4003.6,4003.5,1.29001743]
[1733576494963,0.4047,4003.6,4003.5,1.07300025]
[1733576495162,3.35010051,4003.6,4003.5,4.99783548]
[1733576495368,3.35010051,4003.6,4003.5,1.07300025]
[1733576495560,3.35010051,4003.6,4003.5,4.99783548]
[1733576496667,3.35010051,4003.6,4003.5,1.07300025]
[1733576496865,2.94540051,4003.6,4003.5,4.99783548]
[1733576497073,2.94540051,4003.7,4003.6,0.17464]
[1733576497372,4.32870068,4004.0,4003.6,10.81522185]
[1733576497373,2.94540051,4003.9,4003.6,10.81522185]
[1733576497571,2.94540051,4003.9,4003.8,4.99933108]
[1733576497766,3.34690051,4004.0,4003.8,4.91847877]
[1733576497965,3.34690051,4004.0,4003.9,0.17462]
[1733576497966,0.4015,4004.0,4003.9,0.17462]
[1733576498368,3.34651412,4004.0,4003.9,4.10096083]
[1733576498668,2.94501412,4004.1,4003.9,4.02009699]
[1733576498860,2.94501412,4004.1,4004.0,1.07298025]
[1733576499066,3.6064,4004.3,4004.0,11.45291861]
[1733576499067,3.2078,4004.3,4004.0,11.45291861]
[1733576499269,3.2078,4004.3,4004.2,4.09907225]
[1733576499464,3.2078,4004.3,4004.2,4.09777169]
[1733576499877,3.2078,4004.3,4004.2,4.1914706]
[1733576500171,3.2078,4004.3,4004.2,0.17461]
[1733576500375,3.38241,4004.3,4004.2,0.17461]
[1733576500561,3.6064,4004.3,4004.2,0.17461]
[1733576501976,3.6064,4004.3,4004.2,0.2682116]
[1733576502878,3.78101,4004.3,4004.2,0.0936016]
[1733576503073,0.17461,4004.2,4004.1,0.17461]
[1733576503374,4.16951,4004.3,4004.2,0.17461]
[1733576503777,3.9949,4004.3,4004.2,0.17461]
[1733576504870,4.16951,4004.3,4004.2,0.17461]
[1733576505072,3.9949,4004.3,4004.2,0.17461]
[1733576505272,4.16951,4004.3,4004.2,0.17461]
[1733576505569,3.9949,4004.3,4004.2,0.17461]
[1733576505978,4.16951,4004.3,4004.2,0.17461]
[1733576507368,3.9949,4004.3,4004.2,0.17461]
[1733576507680,4.16951,4004.3,4004.2,0.17461]
[1733576509476,3.9949,4004.3,4004.0,0.89836025]
[1733576509672,4.0973923,4004.2,4004.1,0.17461]
[1733576510173,0.17461,4004.2,4004.1,0.17461]
[1733576512875,0.17461,4004.2,4003.8,3.92316169]
[1733576513084,0.17461,4004.2,4003.7,3.38243]
[1733576513085,0.17463,4003.8,4003.7,3.38243]
[1733576514478,0.55113,4003.8,4003.7,3.38243]
[1733576515680,0.55113,4003.8,4003.7,3.21470349]
[1733576515883,0.55113,4003.8,4003.7,3.04007349]
[1733576516883,0.55113,4003.8,4003.7,3.21470349]
[1733576517077,0.55113,4003.8,4003.7,3.13278201]
[1733576517879,0.55113,4003.8,4003.7,3.04007349]
[1733576519781,0.55113,4003.8,4003.7,3.21470349]
[1733576520488,0.55113,4003.8,4003.7,3.04007349]
[1733576521579,0.55113,4003.8,4003.7,3.21470349]
[1733576521784,0.55113,4003.8,4003.7,4.11306374]
[1733576524189,0.3765,4003.8,4003.7,4.11306374]
[1733576524376,0.3765,4003.8,4003.7,4.20580474]
[1733576524577,0.17463,4003.8,4003.7,4.20580474]
[1733576524890,0.17462,4003.9,4003.8,0.17462]
[1733576525087,0.83263,4004.0,4003.9,0.17462]
[1733576528088,5.74293012,4004.0,4003.9,0.17462]
[1733576528287,0.83263,4004.0,4003.9,0.17462]
[1733576531080,5.74293012,4004.0,4003.9,0.17462]
[1733576531893,0.83263,4004.0,4003.9,0.17462]
[1733576533391,2.94363038,4004.0,4003.8,0.3792]
[1733576533595,2.94363038,4004.0,4003.9,0.56172]
[1733576533790,3.11825038,4004.1,4003.9,0.4798816]
[1733576534099,0.17462,4004.1,4004.0,0.17462]
[1733576534291,3.11777061,4004.1,4004.0,0.56012]
[1733576536597,0.17462,4004.1,4004.0,0.56012]
[1733576537099,3.11796683,4004.1,4004.0,0.56012]
[1733576537299,3.11796683,4004.1,4004.0,0.65293736]
[1733576537702,0.17462,4004.1,4004.0,0.56012]
[1733576538001,0.17462,4004.1,4004.0,0.65292733]
[1733576538002,3.11850026,4004.1,4004.0,0.65292733]
[1733576538600,3.11858229,4004.1,4004.0,0.65292733]
[1733576538795,2.94396229,4004.1,4004.0,0.65292733]
[1733576539004,2.94396229,4004.2,4004.1,0.17462]
[1733576539200,6.98337229,4004.3,4004.2,0.17461]
[1733576539408,6.80876229,4004.3,4004.2,0.17461]
[1733576539701,6.80876229,4004.3,4004.2,0.26741733]
[1733576539902,6.98337229,4004.3,4004.2,0.09280733]
[1733576540199,0.17461,4004.1,4004.0,0.56012]
[1733576540391,3.11863952,4004.1,4004.0,0.65293201]
[1733576541204,2.94402952,4004.1,4004.0,0.65293201]
[1733576541408,3.11863952,4004.2,4004.0,0.60092223]
[1733576541709,0.17461,4004.2,4004.1,0.26743201]
[1733576542400,0.17461,4004.2,4004.1,0.17462]
[1733576543000,0.17461,4004.2,4004.1,0.26743166]
[1733576543204,0.17461,4004.2,4004.1,0.17462]
[1733576544807,4.30714051,4004.3,4004.0,0.3855]
[1733576545007,3.11893012,4004.1,4004.0,0.56012]
[1733576545208,3.11893012,4004.1,4004.0,0.65290973]
[1733576545605,0.17462,4004.1,4004.0,0.65290973]
[1733576545808,3.11922226,4004.1,4004.0,0.65290973]
[1733576546602,0.17462,4004.1,4004.0,0.65290973]
[1733576547303,0.17462,4004.1,4004.0,0.56012]
[1733576547507,3.11961379,4004.1,4004.0,0.56012]
[1733576548606,0.17462,4004.1,4004.0,0.56012]
[1733576549607,4.91030012,4004.2,4004.0,0.3855]
[1733576549809,5.08491012,4004.2,4004.1,0.17462]
[1733576550003,5.08491012,4004.2,4004.1,1.07298025]
[1733576550203,0.17461,4004.2,4004.1,1.07298025]
[1733576553905,5.08491012,4004.2,4004.1,1.07298025]
[1733576554115,0.17461,4004.2,4004.1,1.07298025]
[1733576555111,5.08491012,4004.2,4004.1,1.07298025]
[1733576555307,5.08491012,4004.2,4004.1,1.2882734]
[1733576555504,3.12013368,4004.2,4004.1,1.2882734]
[1733576556217,3.12013368,4004.2,4004.1,1.28826779]
[1733576556417,2.94552716,4004.2,4004.1,5.21142948]
[1733576556612,3.12013716,4004.2,4004.1,5.08889294]
[1733576556816,3.12013716,4004.2,4004.1,5.21142312]
[1733576557108,0.17461,4004.2,4004.1,1.16573125]
[1733576557509,3.92736491,4004.4,4004.1,0.99111125]
[1733576557708,3.92736491,4004.4,4004.3,0.17461]
[1733576557915,3.2078,4004.5,4004.4,0.1746]
[1733576558216,6.15333575,4004.5,4004.4,5.59350254]
[1733576559415,3.2078,4004.5,4004.4,5.59350254]
[1733576559614,3.2078,4004.5,4004.4,5.59346619]
[1733576561518,3.2078,4004.5,4004.4,1.67079743]
[1733576562920,3.2078,4004.5,4004.4,1.54831125]
[1733576563119,3.12012575,4004.6,4004.4,1.54831125]
[1733576563120,3.12012575,4004.6,4004.5,0.1746]
[1733576563515,3.12012575,4004.6,4004.5,0.5528]
[1733576563723,0.17459,4004.6,4004.5,0.6454436]
[1733576564519,4.09897771,4004.6,4004.5,0.6454436]
[1733576564720,0.17459,4004.6,4004.5,0.6454436]
[1733576564921,3.92442186,4004.6,4004.5,0.6454436]
[1733576565120,3.92442186,4004.6,4004.5,1.0370436]
[1733576565417,3.92442186,4004.6,4004.5,4.2448436]
[1733576565917,0.4043,4004.8,4004.5,4.0702436]
[1733576566218,3.92403058,4004.6,4004.5,4.1522]
[1733576566415,4.09862058,4004.7,4004.6,0.17459]
[1733576566621,0.17459,4004.7,4004.6,0.17459]
[1733576566919,4.09830681,4004.7,4004.6,0.26723577]
[1733576567417,4.09830681,4004.7,4004.6,0.26723439]
[1733576567613,3.92371681,4004.7,4004.6,0.26723439]
[1733576567815,4.09830681,4004.7,4004.6,0.26723439]
[1733576568421,4.09830681,4004.7,4004.6,0.17459]
[1733576568615,4.09830681,4004.7,4004.6,0.2672564]
[1733576569120,3.92371681,4004.7,4004.6,0.17459]
[1733576569618,4.09830681,4004.7,4004.6,0.17459]
[1733576570117,0.17459,4004.6,4004.5,1.66816025]
[1733576570322,0.17459,4004.6,4004.2,0.17461]
[1733576570323,4.8217057,4004.6,4004.2,0.17461]
[1733576570517,3.92334545,4004.4,4004.1,0.3995]
[1733576570715,0.933,4004.5,4004.4,0.1746]
[1733576570915,0.7584,4004.5,4004.1,4.32216876]
[1733576571122,0.17461,4004.4,4004.3,0.1746]
[1733576571323,0.933,4004.5,4004.4,0.1746]
[1733576571716,0.933,4004.5,4004.2,0.17461]
[1733576571717,0.17461,4004.3,4004.2,0.17461]
[1733576571917,0.17461,4004.2,4004.1,4.99435933]
[1733576572118,0.3965,4004.2,4004.0,3.92138908]
[1733576572426,0.17462,4004.1,4004.0,0.17462]
[1733576573321,0.17462,4004.0,4003.9,0.17462]
[1733576573922,3.3391364,4004.2,4003.8,5.23274933]
[1733576574123,0.17462,4003.9,4003.8,1.48599025]
[1733576574425,0.17462,4003.9,4003.8,5.40737933]
[1733576574628,0.17462,4003.9,4003.8,5.50012883]
[1733576574922,0.17462,4003.9,4003.8,1.48599025]
[1733576575126,0.17462,4003.9,4003.8,5.40737933]
[1733576575316,0.17462,4003.9,4003.8,5.50012215]
[1733576575520,0.17462,4004.0,4003.9,0.17462]
[1733576576831,0.17462,4004.1,4004.0,0.17462]
[1733576577022,0.17462,4004.1,4004.0,4.99436933]
[1733576577327,0.17462,4004.1,4004.0,5.2096184]
[1733576577533,0.57111,4004.2,4004.1,0.17462]
[1733576577722,0.57111,4004.2,4004.1,0.38986907]
[1733576578533,2.9426364,4004.4,4004.3,0.17461]
[1733576578823,4.68324545,4004.5,4004.4,0.1746]
[1733576579030,3.92334545,4004.5,4004.4,0.38983132]
[1733576579230,0.1746,4004.5,4004.4,1.57573132]
[1733576580030,0.1746,4004.6,4004.5,0.17459]
[1733576580225,0.1746,4004.6,4004.5,0.29708201]
[1733576580528,4.09794545,4004.6,4004.5,0.38979567]
[1733576580722,4.09794545,4004.6,4004.5,0.26730366]
[1733576580923,4.09794545,4004.6,4004.5,0.21521942]
[1733576581131,4.09794545,4004.6,4004.5,0.09271366]
[1733576581823,4.09938954,4004.6,4004.5,0.09271366]
[1733576582321,0.17459,4004.6,4004.5,0.09272512]
[1733576582530,4.09942328,4004.6,4004.5,0.09272512]
[1733576582735,4.09944333,4004.6,4004.5,0.09272512]
[1733576583231,0.17459,4004.6,4004.5,0.09272512]
[1733576583623,4.09949359,4004.6,4004.5,0.09272512]
[1733576583824,0.17459,4004.6,4004.5,0.09272512]
[1733576584428,4.09964017,4004.6,4004.5,0.09272512]
[1733576584928,0.17459,4004.6,4004.5,0.09272512]
[1733576585528,0.1746,4004.5,4004.4,1.1859]
[1733576586029,0.1746,4004.5,4004.4,1.3605]
[1733576586234,0.1746,4004.5,4004.4,1.1859]
[1733576586430,0.1746,4004.5,4004.4,1.3605]
[1733576587130,0.1746,4004.5,4004.4,1.1859]
[1733576588423,0.1746,4004.5,4004.4,0.3948]
[1733576588629,0.5591,4004.5,4004.4,0.5694]
[1733576588835,3.50282883,4004.5,4004.4,0.5694]
[1733576589730,0.3845,4004.5,4004.4,0.5694]
[1733576589926,3.32512883,4004.7,4004.4,4.40890172]
[1733576590131,0.17459,4004.6,4004.5,0.17459]
[1733576592331,0.17459,4004.6,4004.4,1.46776025]
[1733576592332,0.1746,4004.5,4004.4,1.46776025]
[1733576592629,0.1746,4004.5,4004.4,1.6829791]
[1733576593927,0.1746,4004.5,4004.4,1.5083791]
[1733576594135,0.5881,4004.5,4004.4,1.5083791]
[1733576594332,3.53182883,4004.5,4004.4,1.38587964]
[1733576596138,3.53182883,4004.5,4004.4,1.56047964]
[1733576596633,3.53182883,4004.5,4004.4,1.38587964]
[1733576596832,3.53182883,4004.5,4004.4,0.09271939]
[1733576597032,4.51304413,4004.5,4004.1,7.12918908]
[1733576597339,0.17461,4004.2,4004.1,7.12918908]
[1733576597529,0.17461,4004.2,4004.1,7.34454866]
[1733576597734,0.57941,4004.2,4004.1,7.34454866]
[1733576598337,0.57941,4004.2,4004.1,7.51916866]